fUSD/lending_fUSD_20250211
["ID","MTS","AMOUNT","RATE_DAILY","PERIOD"]
[352703178,1739256636668,-878.71,0.00011096,2]
[352703179,1739256636678,-253.4,0.00011096,2]
[352703180,1739256636692,-1884.17256249,0.00011099,2]
[352703181,1739256636702,-3315.687104,0.00011099,2]
[352703182,1739256636711,-1006.0,0.000111,2]
[352703183,1739256636720,-320.74855862,0.00011129,2]
[352703184,1739256636730,-500.3716468,0.00011141,2]
[352703185,1739256636739,-7000.0,0.000112,2]
[352703186,1739256636749,-3315.68710394,0.00011204,2]
[352703187,1739256636758,-1884.17256244,0.00011207,2]
[352703188,1739256636768,-500.0,0.00011229,2]
[352703189,1739256636778,-500.0,0.00011229,2]
[352703190,1739256636787,-658.88,0.00011229,2]
[352703191,1739256636796,-2573.31,0.00011229,2]
[352703192,1739256636806,-1809.24,0.00011229,2]
[352703193,1739256636815,-623.279359,0.00011229,2]
[352703194,1739256636824,-181.12883114,0.00011229,2]
[352703195,1739256636834,-974.03,0.00011229,2]
[352703196,1739256636844,-1158.19,0.00011229,2]
[352703197,1739256636853,-679.751589,0.00011229,2]
[352703198,1739256636863,-758.82,0.00011229,2]
[352703199,1739256636872,-1444.09,0.00011229,2]
[352703200,1739256636881,-500.0,0.00011229,2]
[352703201,1739256636890,-388.57906238,0.00011229,2]
[352703202,1739256636899,-1389.32,0.00011229,2]
[352703203,1739256636909,-730.21,0.00011229,2]
[352703204,1739256636919,-500.0,0.00011229,2]
[352703205,1739256636928,-1438.42,0.00011229,2]
[352703206,1739256636937,-500.0,0.00011229,2]
[352703207,1739256636947,-1244.9,0.00011229,2]
[352703208,1739256636956,-627.66,0.00011229,2]
[352703209,1739256636966,-1074.24,0.00011229,2]
[352703210,1739256636975,-1290.17,0.00011229,2]
[352703211,1739256636984,-925.63,0.00011229,2]
[352703212,1739256636994,-500.0,0.00011229,2]
[352703213,1739256637003,-1899.45,0.00011229,2]
[352703214,1739256637013,-500.0,0.00011229,2]
[352703215,1739256637022,-2272.64,0.00011229,2]
[352703216,1739256637031,-893.41,0.00011229,2]
[352703217,1739256637041,-2267.95,0.00011229,2]
[352703218,1739256637050,-1106.55,0.00011229,2]
[352703219,1739256637059,-990.86,0.00011229,2]
[352703220,1739256637069,-1297.8,0.00011229,2]
[352703221,1739256637078,-1916.57,0.00011229,2]
[352703222,1739256637088,-1586.65,0.00011229,2]
[352703223,1739256637098,-1548.08,0.00011229,2]
[352703224,1739256637107,-574.92,0.00011229,2]
[352703225,1739256637116,-5302.17,0.00011229,2]
[352703226,1739256637126,-1914.5,0.00011229,2]
[352703227,1739256637136,-2010.92,0.00011229,2]
[352703228,1739256637145,-1512.97,0.00011229,2]
[352703229,1739256637156,-500.0,0.00011229,2]
[352703230,1739256637167,-2528.13,0.00011229,2]
[352703231,1739256637176,-1261.27,0.00011229,2]
[352703232,1739256637186,-2590.74,0.00011229,2]
[352703233,1739256637195,-1090.46,0.00011229,2]
[352703234,1739256637205,-3859.16,0.00011229,2]
[352703235,1739256637214,-2165.26,0.00011229,2]
[352703236,1739256637223,-1666.03,0.00011229,2]
[352703237,1739256637233,-1042.87,0.00011229,2]
[352703238,1739256637242,-500.0,0.00011229,2]
[352703239,1739256637251,-1801.69,0.00011229,2]
[352703240,1739256637260,-500.0,0.00011229,2]
[352703241,1739256637269,-2894.11,0.00011229,2]
[352703242,1739256637279,-2294.76,0.00011229,2]
[352703243,1739256637289,-1062.27,0.00011229,2]
[352703244,1739256637298,-1706.6,0.00011229,2]
[352703245,1739256637308,-755.16,0.00011229,2]
[352703246,1739256637317,-500.0,0.00011229,2]
[352703247,1739256637327,-548.88,0.00011229,2]
[352703248,1739256637336,-1095.38,0.00011229,2]
[352703249,1739256637345,-500.0,0.00011229,2]
[352703250,1739256637355,-1127.78,0.00011229,2]
[352703251,1739256637365,-500.0,0.00011229,2]
[352703252,1739256637374,-500.0,0.00011229,2]
[352703253,1739256637384,-762.7,0.00011229,2]
[352703254,1739256637394,-607.06,0.0001123,2]
[352703255,1739256637403,-500.0,0.0001123,2]
[352703256,1739256637414,-500.0,0.0001123,2]
[352703257,1739256637424,-858.21,0.0001123,2]
[352703258,1739256637433,-500.0,0.0001123,2]
[352703259,1739256637442,-725.13,0.0001123,2]
[352703260,1739256637452,-781.16,0.0001123,2]
[352703261,1739256637461,-500.0,0.0001123,2]
[352703262,1739256637471,-591.43,0.0001123,2]
[352703263,1739256637480,-670.81,0.0001123,2]
[352703264,1739256637489,-749.55,0.0001123,2]
[352703265,1739256637498,-500.0,0.0001123,2]
[352703266,1739256637507,-731.98,0.0001123,2]
[352703267,1739256637516,-500.0,0.0001123,2]
[352703268,1739256637526,-831.08,0.0001123,2]
[352703269,1739256637535,-825.53,0.0001123,2]
[352703270,1739256637544,-500.0,0.0001123,2]
[352703271,1739256637554,-543.27,0.0001123,2]
[352703272,1739256637563,-505.31,0.0001123,2]
[352703273,1739256637572,-722.81,0.0001123,2]
[352703274,1739256637582,-951.01,0.0001123,2]
[352703275,1739256637591,-579.63,0.0001123,2]
[352703276,1739256637600,-903.23,0.0001123,2]
[352703277,1739256637610,-573.98,0.0001123,2]
[352703278,1739256637619,-747.88,0.0001123,2]
[352703279,1739256637629,-791.14,0.0001123,2]
[352703280,1739256637638,-500.0,0.0001123,2]
[352703281,1739256637647,-690.68,0.0001123,2]
[352703282,1739256637658,-500.0,0.0001123,2]
[352703283,1739256637668,-1376.28,0.0001123,2]
[352703285,1739256637678,-606.91,0.0001123,2]
[352703287,1739256637690,-500.0,0.0001123,2]
[352703288,1739256637700,-500.0,0.0001123,2]
[352703289,1739256637709,-1731.4,0.0001123,2]
[352703290,1739256637718,-637.22,0.0001123,2]
[352703291,1739256637728,-1615.48,0.0001123,2]
[352703292,1739256637738,-1056.25,0.0001123,2]
[352703293,1739256637747,-1676.33,0.0001123,2]
[352703294,1739256637756,-940.72,0.0001123,2]
[352703295,1739256637767,-1882.68,0.0001123,2]
[352703296,1739256637777,-3671.59,0.0001123,2]
[352703297,1739256637786,-945.34,0.0001123,2]
[352703298,1739256637796,-500.0,0.0001123,2]
[352703299,1739256637805,-1423.08,0.0001123,2]
[352703300,1739256637815,-656.83,0.0001123,2]
[352703301,1739256637824,-2844.91,0.0001123,2]
[352703302,1739256637835,-2009.78,0.0001123,2]
[352703303,1739256637845,-2056.34,0.0001123,2]
[352703304,1739256637855,-500.0,0.0001123,2]
[352703305,1739256637864,-2463.44,0.0001123,2]
[352703306,1739256637874,-500.0,0.0001123,2]
[352703307,1739256637883,-842.61,0.0001123,2]
[352703308,1739256637894,-500.0,0.0001123,2]
[352703309,1739256637905,-819.11,0.0001123,2]
[352703310,1739256637914,-1701.42,0.0001123,2]
[352703311,1739256637924,-549.69,0.0001123,2]
[352703312,1739256637934,-1885.64,0.0001123,2]
[352703313,1739256637944,-675.58,0.0001123,2]
[352703314,1739256637953,-2630.55,0.0001123,2]
[352703315,1739256637963,-568.67,0.0001123,2]
[352703316,1739256637972,-500.0,0.00011231,2]
[352703317,1739256637981,-1256.18,0.00011231,2]
[352703318,1739256637991,-1235.83,0.00011231,2]
[352703319,1739256638000,-684.71,0.00011231,2]
[352703320,1739256638010,-539.35906892,0.00011231,2]
[352703321,1739256638024,-1886.34093108,0.00011231,2]
[352703322,1739256638034,-766.44,0.00011231,2]
[352703323,1739256638043,-2626.67,0.00011231,2]
[352703324,1739256638052,-500.0,0.00011231,2]
[352703325,1739256638062,-996.35,0.00011231,2]
[352703326,1739256638071,-617.36,0.00011231,2]
[352703327,1739256638080,-500.0,0.00011231,2]
[352703328,1739256638090,-500.0,0.00011231,2]
[352703329,1739256638099,-1372.56,0.00011231,2]
[352703330,1739256638108,-979.49,0.00011231,2]
[352703331,1739256638118,-601.68,0.00011231,2]
[352703332,1739256638127,-1101.27448619,0.00011231,2]
[352703333,1739256638139,-330.62029001,0.00011231,2]
[352703334,1739256638150,-193.8752238,0.00011231,2]
[352703335,1739256638162,-905.37477375,0.00011231,2]
[352703336,1739256638173,-926.57522625,0.00011231,2]
[352703337,1739256638183,-1965.4,0.00011231,2]
[352703338,1739256638192,-3461.61,0.00011231,2]
[352703339,1739256638201,-481.05562804,0.00011231,2]
[352703340,1739256638213,-2614.97457783,0.00011231,2]
[352703341,1739256638224,-2696.11979413,0.00011231,2]
[352703342,1739256638233,-815.6,0.00011231,2]
[352703343,1739256638242,-142.03020573,0.00011231,2]
[352703344,1739256638253,-1440.47979427,0.00011231,2]
[352703345,1739256638263,-500.0,0.00011232,2]
[352703346,1739256638272,-500.0,0.00011232,2]
[352703347,1739256638281,-500.0,0.00011232,2]
[352703348,1739256638290,-151.0,0.00011232,2]
[352703349,1739256638299,-500.0,0.00011232,2]
[352703350,1739256638308,-1.31883573,0.00011232,2]
[352703351,1739256638320,-498.68116427,0.00011232,2]
[352703352,1739256638329,-500.0,0.00011232,2]
[352703353,1739256638339,-500.0,0.00011232,2]
[352703354,1739256638349,-500.0,0.00011232,2]
[352703355,1739256638358,-500.0,0.00011232,2]
[352703356,1739256638367,-500.0,0.00011232,2]
[352703357,1739256638377,-500.0,0.00011232,2]
[352703358,1739256638386,-91.93418409,0.00011232,2]
[352703359,1739256638398,-112.11772732,0.00011232,2]
[352703360,1739256638411,-1044.26,0.00011232,2]
[352703361,1739256638420,-883.66,0.00011232,2]
[352703362,1739256638429,-53.36729173,0.00011232,2]
[352703363,1739256638448,-710.52270827,0.00011232,2]
[352703364,1739256638458,-441.02741988,0.00011232,2]
[352703365,1739256638469,-58.97258012,0.00011232,2]
[352703366,1739256638479,-197.72852218,0.00011232,2]
[352703367,1739256638516,-302.27147782,0.00011232,2]
[352703368,1739256638525,-594.24,0.00011232,2]
[352703369,1739256638534,-896.62,0.00011232,2]
[352703370,1739256638544,-500.0,0.00011232,2]
[352703371,1739256638553,-321.26958557,0.00011232,7]
[352703372,1739256638564,-178.73041443,0.00011232,7]
[352703373,1739256638574,-500.0,0.00011232,2]
[352703374,1739256638583,-500.0,0.00011232,2]
[352703375,1739256638593,-958.84225498,0.00011232,2]
[352703376,1739256638604,-0.17774502,0.00011232,2]
[352703377,1739256638613,-254.28225498,0.00011232,2]
[352703378,1739256639503,-159.94582441,0.00011232,2]
[352703379,1739256639513,-340.05417559,0.00011232,2]
[352703380,1739256639609,-159.94582441,0.00011232,2]
[352703381,1739256639619,-640.45,0.00011232,2]
[352703382,1739256639628,-304.60417559,0.00011232,2]
[352703383,1739256639639,-195.39582441,0.00011232,2]
[352703384,1739256639649,-500.0,0.00011232,2]
[352703385,1739256639660,-500.0,0.00011232,2]
[352703386,1739256639670,-565.56,0.00011232,2]
[352703387,1739256639680,-500.0,0.00011232,2]
[352703388,1739256639691,-511.17,0.00011232,2]
[352703389,1739256639700,-572.72,0.00011232,2]
[352703390,1739256639709,-500.0,0.00011232,2]
[352703391,1739256639718,-500.0,0.00011232,2]
[352703392,1739256639729,-500.0,0.00011232,2]
[352703393,1739256639737,-500.0,0.00011232,2]
[352703394,1739256639747,-500.0,0.00011232,2]
[352703395,1739256639756,-500.0,0.00011232,2]
[352703396,1739256639766,-500.0,0.00011232,2]
[352703397,1739256639775,-500.0,0.00011232,2]
[352703398,1739256639784,-500.0,0.00011232,2]
[352703399,1739256639794,-500.0,0.00011232,2]
[352703400,1739256639804,-500.0,0.00011232,2]
[352703401,1739256639813,-183.62343268,0.00011232,2]
[352703404,1739256639934,-316.37656732,0.00011232,2]
[352703405,1739256639943,-28.37043268,0.00011232,2]
[352703406,1739256640186,-602.51956732,0.00011232,2]
[352703407,1739256640195,-500.0,0.00011232,2]
[352703408,1739256640204,-500.0,0.00011232,2]
[352703409,1739256640213,-500.0,0.00011232,2]
[352703410,1739256640222,-500.0,0.00011232,2]
[352703411,1739256640231,-500.0,0.00011232,2]
[352703412,1739256640240,-500.0,0.00011232,2]
[352703413,1739256640249,-544.67,0.00011232,2]
[352703414,1739256640258,-500.0,0.00011232,2]
[352703415,1739256640268,-659.93,0.00011232,2]
[352703416,1739256640277,-1349.85,0.00011232,2]
[352703417,1739256640287,-308.8072376,0.00011232,2]
[352703418,1739256640298,-369.82335315,0.00011232,2]
[352703419,1739256640308,-95.53940925,0.00011232,2]
[352703420,1739256640317,-1065.27,0.00011232,2]
[352703421,1739256640326,-790.92369072,0.00011232,2]
[352703422,1739256640337,-209.07630928,0.00011232,2]
[352703423,1739256640346,-124.50887796,0.00011232,2]
[352703424,1739256640358,-375.49112204,0.00011232,2]
[352703425,1739256640367,-1196.98,0.00011232,2]
[352703426,1739256640376,-396.54334133,0.00011232,2]
[352703427,1739256640387,-103.45665867,0.00011232,2]
[352703428,1739256640396,-500.0,0.00011232,2]
[352703429,1739256640407,-1537.1,0.00011232,2]
[352703430,1739256640416,-500.0,0.00011232,2]
[352703431,1739256640425,-1837.17,0.00011232,2]
[352703432,1739256640434,-500.0,0.00011232,2]
[352703433,1739256640443,-834.97,0.00011232,2]
[352703435,1739256640452,-500.0,0.00011232,2]
[352703437,1739256640461,-500.0,0.00011232,2]
[352703438,1739256640471,-500.0,0.00011232,2]
[352703439,1739256640480,-669.28,0.00011232,2]
[352703440,1739256640488,-598.13,0.00011232,2]
[352703441,1739256640497,-500.0,0.00011232,2]
[352703442,1739256640506,-500.0,0.00011232,2]
[352703443,1739256640515,-799.58,0.00011232,2]
[352703444,1739256640524,-800.52,0.00011232,2]
[352703445,1739256640533,-788.41,0.00011232,2]
[352703446,1739256640542,-849.35,0.00011232,2]
[352703447,1739256640551,-578.73,0.00011232,2]
[352703448,1739256640560,-500.0,0.00011232,2]
[352703449,1739256640569,-2402.92749,0.0001126,2]
[352703450,1739256640579,-500.0,0.00011278,2]
[352703451,1739256640588,-2000.0,0.00011278,2]
[352703452,1739256640598,-200.0,0.00011278,2]
[352703453,1739256640607,-196.0,0.000113,2]
[352703454,1739256640616,-196.0,0.000113,3]
[352703455,1739256640625,-197.43,0.000113,3]
[352703456,1739256640634,-500.0,0.00011327,2]
[352703457,1739256640643,-529.9416313,0.00011358,2]
[352703458,1739256640652,-315.5738334,0.00011358,2]
[352703459,1739256640663,-3789.89307063,0.00011358,2]
[352703462,1739256642949,-1261.59,0.00011092,2]
[352703463,1739256642958,-1151.5,0.00011093,2]
[352703464,1739256642968,-668.4,0.00011093,2]
[352703465,1739256642978,-2223.56,0.00011093,2]
[352703466,1739256642987,-1261.59,0.00011229,2]
[352703467,1739256642996,-1151.5,0.0001123,2]
[352703468,1739256643006,-668.4,0.0001123,2]
[352703469,1739256643015,-1460.56,0.0001123,2]
[352703470,1739256643033,-763.0,0.0001123,2]
[352703471,1739256643043,-2115.76095197,0.00011358,2]
[352703472,1739256643053,-657.51904803,0.00011358,2]
[352703473,1739256643077,-500.0,0.00011092,2]
[352703474,1739256643086,-672.60860387,0.00011358,2]
[352703475,1739256643096,-394.0941475,0.00011359,2]
[352703476,1739256643106,-500.0,0.00011366,2]
[352703477,1739256643116,-500.0,0.00011366,2]
[352703478,1739256643126,-658.88,0.00011366,2]
[352703479,1739256643136,-1809.24,0.00011366,2]
[352703480,1739256643146,-623.279359,0.00011366,2]
[352703481,1739256643156,-974.03,0.00011366,2]
[352703482,1739256643170,-1158.19,0.00011366,2]
[352703483,1739256643180,-221.45972749,0.00011366,2]
[352703484,1739256643199,-458.29186151,0.00011366,2]
[352703485,1739256643210,-758.82,0.00011366,2]
[352703486,1739256643219,-1444.09,0.00011366,2]
[352703487,1739256643229,-500.0,0.00011366,2]
[352703488,1739256643238,-1389.32,0.00011366,2]
[352703489,1739256643248,-730.21,0.00011366,2]
[352703490,1739256643257,-500.0,0.00011366,2]
[352703491,1739256643267,-1438.42,0.00011366,2]
[352703492,1739256643276,-500.0,0.00011366,2]
[352703493,1739256643288,-280.84813849,0.00011366,2]
[352703495,1739256643337,-500.0,0.00011229,2]
[352703496,1739256643346,-477.05,0.00011366,2]
[352703520,1739256645970,-500.0,0.00011092,2]
[352703521,1739256645981,-913.73,0.00011093,2]
[352703522,1739256645991,-500.0,0.00011229,2]
[352703523,1739256646001,-913.73,0.0001123,2]
[352703524,1739256646010,-173.7447036,0.00011366,2]
[352703525,1739256646022,-313.25715791,0.00011366,2]
[352703526,1739256646032,-627.66,0.00011366,2]
[352703527,1739256646042,-1074.24,0.00011366,2]
[352703528,1739256646052,-287.70975809,0.00011366,2]
[352703529,1739256646063,-663.846825,0.00011366,2]
[352703530,1739256646097,-1181.12,0.00011094,2]
[352703531,1739256646108,-338.61341691,0.00011366,2]
[352703532,1739256646118,-925.63,0.00011366,2]
[352703533,1739256646127,-500.0,0.00011366,2]
[352703534,1739256646137,-1899.45,0.00011366,2]
[352703535,1739256646147,-500.0,0.00011366,2]
[352703536,1739256646157,-2272.64,0.00011366,2]
[352703537,1739256646167,-893.41,0.00011366,2]
[352703538,1739256646177,-2267.95,0.00011366,2]
[352703539,1739256646187,-1106.55,0.00011366,2]
[352703540,1739256646196,-990.86,0.00011366,2]
[352703541,1739256646207,-1297.8,0.00011366,2]
[352703542,1739256646217,-1916.57,0.00011366,2]
[352703543,1739256646227,-1586.65,0.00011366,2]
[352703544,1739256646237,-1548.08,0.00011366,2]
[352703545,1739256646247,-574.92,0.00011366,2]
[352703546,1739256646257,-5302.17,0.00011366,2]
[352703547,1739256646268,-1914.5,0.00011366,2]
[352703548,1739256646277,-2010.92,0.00011366,2]
[352703549,1739256646287,-1512.97,0.00011366,2]
[352703550,1739256646297,-500.0,0.00011366,2]
[352703551,1739256646307,-2528.13,0.00011366,2]
[352703552,1739256646317,-1261.27,0.00011366,2]
[352703553,1739256646327,-2590.74,0.00011366,2]
[352703554,1739256646337,-1090.46,0.00011366,2]
[352703555,1739256646347,-3859.16,0.00011366,2]
[352703557,1739256646357,-2165.26,0.00011366,2]
[352703559,1739256646367,-1666.03,0.00011366,2]
[352703561,1739256646378,-1042.87,0.00011366,2]
[352703563,1739256646387,-500.0,0.00011366,2]
[352703565,1739256646398,-1801.69,0.00011366,2]
[352703567,1739256646407,-500.0,0.00011366,2]
[352703569,1739256646419,-2894.11,0.00011366,2]
[352703571,1739256646428,-2294.76,0.00011366,2]
[352703573,1739256646438,-1062.27,0.00011366,2]
[352703575,1739256646447,-1706.6,0.00011366,2]
[352703577,1739256646457,-755.16,0.00011366,2]
[352703578,1739256646467,-500.0,0.00011366,2]
[352703579,1739256646477,-548.88,0.00011366,2]
[352703580,1739256646487,-1095.38,0.00011366,2]
[352703581,1739256646496,-500.0,0.00011366,2]
[352703582,1739256646506,-1127.78,0.00011366,2]
[352703583,1739256646516,-500.96286186,0.00011366,2]
[352703584,1739256646526,-500.0,0.00011366,2]
[352703585,1739256646536,-762.7,0.00011366,2]
[352703586,1739256646546,-1261.59,0.00011366,2]
[352703587,1739256646556,-500.0,0.00011366,2]
[352703588,1739256646566,-500.0,0.00011366,2]
[352703589,1739256646576,-262.5846576,0.00011367,2]
[352703590,1739256646586,-858.21,0.00011367,2]
[352703591,1739256646596,-500.0,0.00011367,2]
[352703592,1739256646606,-725.13,0.00011367,2]
[352703593,1739256646616,-781.16,0.00011367,2]
[352703594,1739256646625,-500.0,0.00011367,2]
[352703595,1739256646635,-591.43,0.00011367,2]
[352703596,1739256646645,-670.81,0.00011367,2]
[352703597,1739256646655,-749.55,0.00011367,2]
[352703598,1739256646667,-500.0,0.00011367,2]
[352703599,1739256646677,-731.98,0.00011367,2]
[352703600,1739256646691,-500.0,0.00011367,2]
[352703601,1739256646701,-831.08,0.00011367,2]
[352703602,1739256646711,-825.53,0.00011367,2]
[352703603,1739256646721,-500.0,0.00011367,2]
[352703604,1739256646732,-543.27,0.00011367,2]
[352703605,1739256646742,-505.31,0.00011367,2]
[352703606,1739256646752,-722.81,0.00011367,2]
[352703607,1739256646763,-951.01,0.00011367,2]
[352703608,1739256646774,-579.63,0.00011367,2]
[352703609,1739256646785,-903.23,0.00011367,2]
[352703610,1739256646795,-573.98,0.00011367,2]
[352703611,1739256646806,-747.88,0.00011367,2]
[352703612,1739256646817,-791.14,0.00011367,2]
[352703613,1739256646827,-500.0,0.00011367,2]
[352703614,1739256646838,-690.68,0.00011367,2]
[352703615,1739256646849,-500.0,0.00011367,2]
[352703616,1739256646860,-606.91,0.00011367,2]
[352703617,1739256646870,-500.0,0.00011367,2]
[352703618,1739256646881,-500.0,0.00011367,2]
[352703619,1739256646891,-1731.4,0.00011367,2]
[352703620,1739256646902,-637.22,0.00011367,2]
[352703621,1739256646913,-1615.48,0.00011367,2]
[352703622,1739256647145,-1056.25,0.00011367,2]
[352703623,1739256647155,-1676.33,0.00011367,2]
[352703624,1739256647165,-940.72,0.00011367,2]
[352703625,1739256647175,-1882.68,0.00011367,2]
[352703626,1739256647185,-3671.59,0.00011367,2]
[352703627,1739256647196,-945.34,0.00011367,2]
[352703628,1739256647206,-500.0,0.00011367,2]
[352703629,1739256647216,-1423.08,0.00011367,2]
[352703630,1739256647226,-656.83,0.00011367,2]
[352703631,1739256647235,-2844.91,0.00011367,2]
[352703632,1739256647246,-2009.78,0.00011367,2]
[352703633,1739256647255,-2056.34,0.00011367,2]
[352703634,1739256647264,-500.0,0.00011367,2]
[352703635,1739256647274,-2463.44,0.00011367,2]
[352703636,1739256647283,-500.0,0.00011367,2]
[352703637,1739256647293,-842.61,0.00011367,2]
[352703638,1739256647303,-500.0,0.00011367,2]
[352703639,1739256647313,-819.11,0.00011367,2]
[352703640,1739256647323,-1701.42,0.00011367,2]
[352703641,1739256647333,-549.69,0.00011367,2]
[352703642,1739256647343,-1885.64,0.00011367,2]
[352703643,1739256647352,-675.58,0.00011367,2]
[352703644,1739256647363,-2630.55,0.00011367,2]
[352703645,1739256647372,-568.67,0.00011367,2]
[352703646,1739256647382,-1151.5,0.00011367,2]
[352703647,1739256647391,-668.4,0.00011367,2]
[352703648,1739256647401,-2223.56,0.00011367,2]
[352703649,1739256647411,-913.73,0.00011367,2]
[352703650,1739256647422,-500.0,0.00011368,2]
[352703651,1739256647432,-684.71,0.00011368,2]
[352703652,1739256647441,-766.44,0.00011368,2]
[352703653,1739256647451,-2626.67,0.00011368,2]
[352703654,1739256647461,-500.0,0.00011368,2]
[352703655,1739256647471,-996.35,0.00011368,2]
[352703656,1739256647481,-617.36,0.00011368,2]
[352703657,1739256647491,-500.0,0.00011368,2]
[352703658,1739256647501,-500.0,0.00011368,2]
[352703659,1739256647511,-1372.56,0.00011368,2]
[352703660,1739256647521,-979.49,0.00011368,2]
[352703661,1739256647531,-601.68,0.00011368,2]
[352703662,1739256647540,-1625.77,0.00011368,2]
[352703663,1739256647551,-1831.95,0.00011368,2]
[352703664,1739256647561,-1965.4,0.00011368,2]
[352703665,1739256647571,-3461.61,0.00011368,2]
[352703666,1739256647581,-5792.15,0.00011368,2]
[352703667,1739256647591,-815.6,0.00011368,2]
[352703668,1739256647604,-1582.51,0.00011368,2]
[352703669,1739256647614,-500.0,0.00011369,2]
[352703670,1739256647624,-151.0,0.00011369,2]
[352703671,1739256647634,-500.0,0.00011369,2]
[352703672,1739256647644,-500.0,0.00011369,2]
[352703673,1739256647654,-500.0,0.00011369,2]
[352703674,1739256647664,-500.0,0.00011369,2]
[352703675,1739256647673,-500.0,0.00011369,2]
[352703676,1739256647683,-500.0,0.00011369,2]
[352703677,1739256647697,-500.0,0.00011369,2]
[352703678,1739256647707,-500.0,0.00011369,2]
[352703679,1739256647717,-500.0,0.00011369,2]
[352703680,1739256647726,-500.0,0.00011369,2]
[352703681,1739256647737,-500.0,0.00011369,2]
[352703682,1739256647747,-500.0,0.00011369,2]
[352703683,1739256647757,-500.0,0.00011369,2]
[352703684,1739256647767,-500.0,0.00011369,2]
[352703685,1739256647778,-500.0,0.00011369,2]
[352703686,1739256647787,-500.0,0.00011369,2]
[352703687,1739256647797,-500.0,0.00011369,2]
[352703688,1739256647808,-500.0,0.00011369,2]
[352703689,1739256647818,-500.0,0.00011369,2]
[352703690,1739256647829,-500.0,0.00011369,2]
[352703691,1739256647839,-500.0,0.00011369,2]
[352703692,1739256647850,-500.0,0.00011369,2]
[352703693,1739256647861,-500.0,0.00011369,2]
[352703694,1739256647872,-500.0,0.00011369,2]
[352703695,1739256647881,-500.0,0.00011369,2]
[352703696,1739256647890,-500.0,0.00011369,2]
[352703697,1739256647900,-500.0,0.00011369,2]
[352703698,1739256647909,-500.0,0.00011369,2]
[352703699,1739256647922,-500.0,0.00011369,2]
[352703700,1739256647936,-500.0,0.00011369,2]
[352703701,1739256647946,-500.0,0.00011369,2]
[352703702,1739256647955,-500.0,0.00011369,2]
[352703703,1739256647965,-500.0,0.00011369,2]
[352703704,1739256647975,-500.0,0.00011369,2]
[352703705,1739256647984,-500.0,0.00011369,2]
[352703706,1739256647994,-500.0,0.00011369,2]
[352703707,1739256648003,-500.0,0.00011369,2]
[352703708,1739256648014,-500.0,0.00011369,2]
[352703709,1739256648024,-500.0,0.00011369,2]
[352703710,1739256648034,-500.0,0.00011369,2]
[352703711,1739256648044,-500.0,0.00011369,2]
[352703712,1739256648054,-500.0,0.00011369,2]
[352703713,1739256648064,-500.0,0.00011369,2]
[352703714,1739256648075,-500.0,0.00011369,2]
[352703715,1739256648086,-500.0,0.00011369,2]
[352703716,1739256648096,-500.0,0.00011369,2]
[352703717,1739256648111,-500.0,0.00011369,2]
[352703718,1739256648123,-500.0,0.00011369,2]
[352703719,1739256648134,-500.0,0.00011369,2]
[352703720,1739256648144,-500.0,0.00011369,2]